bitfinex/quotes_BTCUSD_20260110
["timestamp","ask_amount","ask_price","bid_price","bid_amount"]
[1768086448102,0.03,90517.0,90509.0,0.07084202]
[1768086448743,0.03,90516.0,90509.0,0.07084202]
[1768086449797,0.03,90515.0,90509.0,0.07084202]
[1768086450860,0.03,90519.0,90509.0,0.07084202]
[1768086452577,0.03,90520.0,90509.0,0.07084202]
[1768086453003,0.04104728,90520.0,90509.0,0.07084202]
[1768086453614,0.03,90518.0,90509.0,0.07084202]
[1768086454758,0.03,90517.0,90509.0,0.07084202]
[1768086455708,0.03,90516.0,90509.0,0.07084202]
[1768086456102,0.03,90516.0,90509.0,0.08189064]
[1768086456447,0.03,90516.0,90509.0,0.13713355]
[1768086456882,0.03,90515.0,90509.0,0.13713355]
[1768086456995,0.03,90515.0,90509.0,0.13713364]
[1768086457206,0.03,90515.0,90510.0,0.06033376]
[1768086458071,0.00039,90521.0,90510.0,0.06033376]
[1768086458231,0.00039,90521.0,90511.0,0.01104838]
[1768086458428,0.00039,90521.0,90512.0,0.01104825]
[1768086458776,0.00039,90521.0,90511.0,0.01104838]
[1768086459028,0.00039,90521.0,90512.0,0.01104825]
[1768086460453,0.00039,90521.0,90513.0,0.01104813]
[1768086460673,0.00039,90521.0,90512.0,0.06628915]
[1768086460877,0.00039,90521.0,90513.0,0.01104813]
[1768086461498,0.00039,90521.0,90512.0,0.06628915]
[1768086462284,0.00039,90521.0,90512.0,0.01104825]
[1768086462704,0.00039,90521.0,90512.0,0.01098012]
[1768086463085,0.00039,90521.0,90511.0,0.0662902]
[1768086463086,0.00039,90521.0,90511.0,0.01104838]
[1768086463643,0.00039,90521.0,90512.0,0.01104825]
[1768086463790,0.00039,90521.0,90510.0,0.11557599]
[1768086463997,0.03039,90521.0,90510.0,0.04928526]
[1768086464443,0.04143716,90521.0,90510.0,0.04928526]
[1768086464577,0.03039,90521.0,90510.0,0.04928526]
[1768086465301,0.03039,90521.0,90510.0,0.04924028]
[1768086466353,0.03,90520.0,90510.0,0.04924028]
[1768086466559,0.03,90520.0,90510.0,0.06028878]
[1768086466887,0.03,90520.0,90511.0,0.01104838]
[1768086467293,0.03,90520.0,90512.0,0.01104825]
[1768086467470,0.03,90519.0,90511.0,0.06629007]
[1768086467855,0.03,90519.0,90512.0,0.01104825]
[1768086468461,0.03,90518.0,90511.0,0.06629007]
[1768086469602,0.00039,90521.0,90511.0,0.01104838]
[1768086469805,0.00039,90521.0,90511.0,0.01098025]
[1768086470310,0.00039,90521.0,90512.0,0.01104825]
[1768086470512,0.00039,90521.0,90511.0,0.06622199]
[1768086471303,0.00039,90521.0,90511.0,0.01098025]
[1768086472062,0.00039,90521.0,90511.0,0.06622215]
[1768086474504,0.00039,90521.0,90512.0,0.01104825]
[1768086475188,0.00039,90521.0,90511.0,0.06622215]
[1768086475189,0.00039,90521.0,90511.0,0.01098025]
[1768086476307,0.00039,90521.0,90511.0,0.01091212]
[1768086477428,0.00039,90521.0,90511.0,0.01104838]
[1768086479617,0.00039,90521.0,90510.0,0.06028878]
[1768086480243,0.00039,90521.0,90511.0,0.01104838]
[1768086480492,0.00039,90521.0,90512.0,0.01104825]
[1768086480715,0.00039,90521.0,90510.0,0.11553085]
[1768086480873,0.00039,90521.0,90511.0,0.01104838]
[1768086481297,0.00039,90521.0,90512.0,0.01104825]
[1768086481867,0.00039,90521.0,90513.0,0.01104813]
[1768086482268,0.00039,90521.0,90512.0,0.01104825]
[1768086482707,0.00039,90521.0,90513.0,0.01104813]
[1768086484492,0.00039,90521.0,90512.0,0.06622122]
[1768086485003,0.00039,90521.0,90513.0,0.01104813]
[1768086485225,0.00039,90521.0,90514.0,0.01104801]
[1768086485574,0.00039,90521.0,90513.0,0.06628849]
[1768086485913,0.00039,90521.0,90513.0,0.01104813]
[1768086486111,0.00039,90521.0,90513.0,0.06628849]
[1768086487450,0.00039,90521.0,90514.0,0.01104801]
[1768086487857,0.00039,90521.0,90513.0,0.06628849]
[1768086489488,0.00039,90521.0,90512.0,0.06622109]
[1768086489687,0.00039,90521.0,90513.0,0.01104813]
[1768086489985,0.00039,90521.0,90513.0,0.06622069]
[1768086490285,0.00039,90521.0,90514.0,0.01104801]
[1768086490464,0.00039,90521.0,90514.0,0.06628806]
[1768086490684,0.00039,90521.0,90515.0,0.01104789]
[1768086490867,0.00039,90521.0,90514.0,0.06628806]
[1768086491217,0.00039,90521.0,90515.0,0.01104789]
[1768086491487,0.00039,90521.0,90516.0,0.01104777]
[1768086491840,0.00039,90521.0,90515.0,0.06628719]
[1768086492265,0.00039,90521.0,90515.0,0.01104789]
[1768086492522,0.11608305,90530.0,90292.0,0.59678356]
[1768086492523,0.02212,90531.0,90520.0,0.04907694]
[1768086492813,0.02212,90531.0,90518.0,0.01104752]
[1768086493028,0.02212,90531.0,90519.0,0.0110474]
[1768086493232,0.02212,90531.0,90518.0,0.06628486]
[1768086493435,0.03,90530.0,90518.0,0.06628495]
[1768086493640,0.03,90530.0,90518.0,0.01104752]
[1768086493796,0.03,90530.0,90517.0,0.11536261]
[1768086493995,0.03,90530.0,90518.0,0.01104752]
[1768086496198,0.03,90530.0,90518.0,0.02212]
[1768086496448,0.04104606,90530.0,90518.0,0.02212]
[1768086497242,0.03,90528.0,90518.0,0.02212]
[1768086503095,0.03,90527.0,90518.0,0.02212]
[1768086504041,0.03,90526.0,90519.0,0.0110474]
[1768086504250,0.06627289,90535.0,90526.0,0.000267]
[1768086504609,0.01104557,90534.0,90520.0,0.01104728]
[1768086505011,0.03,90534.0,90521.0,0.01104716]
[1768086509038,0.03,90532.0,90520.0,0.29323351]
[1768086510023,0.03,90531.0,90520.0,0.29323351]
[1768086510227,0.03,90531.0,90520.0,0.35951705]
[1768086511145,0.04104557,90534.0,90520.0,0.35951705]
[1768086511769,0.04104557,90534.0,90520.0,0.30428079]
[1768086512498,0.03,90534.0,90521.0,0.01104716]
[1768086513045,0.04104557,90534.0,90520.0,0.35951719]
[1768086513473,0.01104569,90533.0,90520.0,0.29323351]
[1768086513671,0.03,90530.0,90520.0,0.29323351]
[1768086514717,0.03,90529.0,90520.0,0.29323351]
[1768086515750,0.03,90528.0,90520.0,0.29323351]
[1768086516742,0.03,90532.0,90520.0,0.29323351]
[1768086516940,0.04104581,90532.0,90520.0,0.29323351]
[1768086517764,0.03,90532.0,90520.0,0.29323351]
[1768086518904,0.04104581,90532.0,90520.0,0.29323351]
[1768086519099,0.03,90532.0,90520.0,0.29323351]
[1768086523446,0.03,90531.0,90520.0,0.30428079]
[1768086523822,0.03,90531.0,90520.0,0.29323351]
[1768086524025,0.03,90531.0,90520.0,0.30428079]
[1768086524486,0.03,90530.0,90518.0,0.02212]
[1768086525492,0.03,90529.0,90518.0,0.02212]
[1768086526353,0.03,90529.0,90518.0,0.07735756]
[1768086526558,0.03,90528.0,90518.0,0.07735756]
[1768086527294,0.03,90528.0,90519.0,0.05523691]
[1768086527515,0.03,90528.0,90519.0,0.06628431]
[1768086527695,0.03,90533.0,90519.0,0.06628431]
[1768086527899,0.03,90533.0,90519.0,0.05765743]
[1768086528097,0.03,90533.0,90521.0,0.01104716]
[1768086528671,0.03,90532.0,90521.0,0.01104716]
[1768086528907,0.03,90532.0,90519.0,0.05765743]
[1768086529224,0.03,90532.0,90520.0,0.01104728]
[1768086529449,0.03,90532.0,90521.0,0.01104716]
[1768086529628,0.000151,90537.0,90520.0,0.01104728]
[1768086529629,0.000151,90537.0,90522.0,0.05765706]
[1768086529815,0.030151,90537.0,90528.0,0.04661003]
[1768086529988,0.030151,90537.0,90527.0,0.29323351]
[1768086529989,0.030151,90537.0,90533.0,0.04661003]
[1768086530817,0.03,90536.0,90533.0,0.04661003]
[1768086531627,0.000151,90537.0,90533.0,0.04661003]
[1768086537114,0.0004,90541.0,90533.0,0.04661003]
[1768086537115,0.0004,90541.0,90537.0,0.0468487]
[1768086537326,0.0004,90541.0,90539.0,0.0466987]
[1768086537525,0.000151,90546.0,90541.0,0.0468147]
[1768086537733,0.000151,90546.0,90541.0,0.04650348]
[1768086537891,0.000151,90546.0,90541.0,0.04619226]
[1768086539347,0.000151,90546.0,90536.0,0.0466987]
[1768086539566,0.03,90545.0,90536.0,0.0466987]
[1768086539984,0.03,90545.0,90531.0,0.112974]
[1768086540202,0.03,90545.0,90532.0,0.05774451]
[1768086540420,0.03,90545.0,90535.0,0.01104545]
[1768086540659,0.000151,90546.0,90535.0,0.06627264]
[1768086540660,0.03,90544.0,90535.0,0.06627264]
[1768086541379,0.03,90544.0,90535.0,0.01104545]
[1768086541582,0.03,90544.0,90536.0,0.01104533]
[1768086541784,0.03,90543.0,90535.0,0.06627269]
[1768086541981,0.03,90543.0,90530.0,0.01104606]
[1768086542297,0.000848,90535.0,90529.0,0.01104618]
[1768086542442,0.000848,90535.0,90520.0,0.29323351]
[1768086542443,0.000848,90535.0,90525.0,0.01104667]
[1768086542646,0.03,90539.0,90525.0,0.01104667]
[1768086542994,0.03,90539.0,90527.0,0.02212]
[1768086542995,0.03,90533.0,90527.0,0.02212]
[1768086543213,0.03,90533.0,90526.0,0.02212]
[1768086543377,0.000848,90527.0,90518.0,0.01104752]
[1768086543588,0.00038339,90527.0,90516.0,0.0466987]
[1768086543780,0.03,90524.0,90515.0,0.022271]
[1768086543980,0.04104703,90522.0,90515.0,0.000151]
[1768086544314,0.03,90520.0,90515.0,0.000151]
[1768086545460,0.03,90522.0,90515.0,0.000151]
[1768086546522,0.04104691,90523.0,90515.0,0.000151]
[1768086546743,0.03,90523.0,90515.0,0.000151]
[1768086547262,0.04104691,90523.0,90515.0,0.000151]
[1768086548273,0.03,90521.0,90515.0,0.000151]
[1768086549305,0.03,90520.0,90515.0,0.000151]
[1768086550483,0.03,90521.0,90515.0,0.000151]
[1768086551752,0.03,90520.0,90515.0,0.000151]
[1768086553015,0.03,90522.0,90515.0,0.000151]
[1768086553615,0.04104703,90522.0,90515.0,0.000151]
[1768086553817,0.03,90520.0,90515.0,0.000151]
[1768086554920,0.03,90521.0,90515.0,0.000151]
[1768086555799,0.03,90519.0,90515.0,1e-06]
[1768086556822,0.03,90520.0,90515.0,1e-06]
[1768086557666,0.04104728,90520.0,90515.0,1e-06]
[1768086557810,0.03,90520.0,90515.0,1e-06]
[1768086558010,0.04104728,90520.0,90515.0,1e-06]
[1768086558540,0.03,90520.0,90515.0,1e-06]
[1768086558962,0.03,90519.0,90515.0,1e-06]
[1768086560191,0.03,90522.0,90515.0,1e-06]
[1768086561050,0.04104703,90522.0,90515.0,1e-06]
[1768086561248,0.03,90519.0,90515.0,1e-06]
[1768086562630,0.03,90518.0,90515.0,1e-06]
[1768086563104,0.03,90518.0,90515.0,0.04658752]
[1768086563266,0.01104691,90523.0,90518.0,0.000766]
[1768086563446,0.01104691,90523.0,90515.0,0.04658752]
[1768086563650,0.03,90522.0,90515.0,0.04658752]
[1768086564435,0.03,90520.0,90515.0,0.04658752]
[1768086565476,0.03,90522.0,90515.0,0.04658752]
[1768086566116,0.03,90520.0,90515.0,0.04658752]
[1768086567147,0.03,90522.0,90515.0,0.04658752]
[1768086569665,0.03,90521.0,90515.0,0.04658752]
[1768086571242,0.01104691,90523.0,90515.0,0.04658752]
[1768086571243,0.03,90520.0,90515.0,0.04658752]
[1768086571408,0.03,90520.0,90515.0,1e-06]
[1768086572427,0.03,90519.0,90515.0,1e-06]
[1768086573036,0.00039,90525.0,90519.0,0.000766]
[1768086573493,0.00039,90525.0,90516.0,0.04658652]
[1768086574307,0.03,90522.0,90516.0,0.04658652]
[1768086575198,0.03039,90525.0,90516.0,0.04658652]
[1768086576733,0.03,90524.0,90516.0,0.04658652]
[1768086577834,0.00039,90525.0,90516.0,0.04658652]
[1768086580146,0.03039,90525.0,90516.0,0.04658652]
[1768086581163,0.00039,90525.0,90516.0,0.04658652]
[1768086582293,0.03,90524.0,90516.0,0.04658652]
[1768086582940,0.04104679,90524.0,90516.0,0.04658652]
[1768086583110,0.03,90522.0,90516.0,0.04658652]
[1768086584135,0.03,90521.0,90516.0,0.04658652]
[1768086585318,0.03,90520.0,90516.0,0.04658652]
[1768086586185,0.03,90520.0,90516.0,0.04649686]
[1768086586303,0.00039,90525.0,90516.0,0.04649686]
[1768086587507,0.03039,90525.0,90516.0,0.04649686]
[1768086587862,0.03039,90525.0,90516.0,0.05754463]
[1768086588069,0.03039,90525.0,90516.0,0.1127834]
[1768086588267,0.03039,90525.0,90516.0,0.05754463]
[1768086588469,0.00039,90525.0,90517.0,0.01104764]
[1768086588689,0.00039,90525.0,90518.0,0.04921652]
[1768086588892,0.03,90528.0,90525.0,0.04921652]
[1768086589093,0.05522702,90536.0,90528.0,0.000376]
[1768086589357,0.01104545,90535.0,90525.0,0.04921652]
[1768086589601,0.03,90534.0,90525.0,0.04921652]
[1768086589772,0.03,90532.0,90525.0,0.04921652]
[1768086590201,0.04104581,90532.0,90520.0,0.04921652]
[1768086590406,0.03,90528.0,90520.0,0.04921652]
[1768086591415,0.03,90527.0,90520.0,0.04921652]
[1768086592001,0.06627509,90532.0,90520.0,0.04921652]
[1768086592002,0.01104569,90533.0,90520.0,0.04921652]
[1768086592434,0.03,90532.0,90520.0,0.04921652]
[1768086592641,0.03,90532.0,90520.0,0.0602638]
[1768086593253,0.03,90532.0,90521.0,0.04764358]
[1768086593404,0.03,90534.0,90532.0,0.000376]
[1768086593827,0.04104557,90534.0,90523.0,0.04764358]
[1768086594027,0.03,90534.0,90523.0,0.04764358]
[1768086594255,0.04104557,90534.0,90523.0,0.04764358]
[1768086594788,0.03,90534.0,90523.0,0.04764358]
[1768086595089,0.04104557,90534.0,90523.0,0.04764358]
[1768086595531,5.845e-05,90536.0,90520.0,0.01104728]
[1768086595532,5.845e-05,90536.0,90534.0,0.04801958]
[1768086595980,5.845e-05,90536.0,90529.0,0.04764358]
[1768086596138,0.04598311,90536.0,90527.0,0.01104642]
[1768086596635,0.07592466,90533.0,90525.0,0.06627997]
[1768086596782,0.07592466,90533.0,90525.0,0.01104667]
[1768086596986,0.07592466,90529.0,90526.0,0.0662792]
[1768086597185,0.07592466,90529.0,90526.0,0.01104655]
[1768086597752,0.03,90527.0,90526.0,0.0662793]
[1768086597939,0.04592466,90535.0,90527.0,0.01104642]
[1768086598149,5.845e-05,90536.0,90528.0,0.04764358]
[1768086598797,5.845e-05,90536.0,90528.0,0.05868988]
[1768086599447,5.845e-05,90536.0,90528.0,0.04764358]
[1768086601670,5.845e-05,90536.0,90528.0,0.04755393]
[1768086601880,5.845e-05,90536.0,90527.0,0.00028531]
[1768086602498,0.04598311,90536.0,90527.0,0.00028531]
[1768086602718,0.04598311,90536.0,90513.0,0.01104813]
[1768086602719,0.04592466,90528.0,90513.0,0.01104813]
[1768086602962,0.03,90523.0,90515.0,0.02212]
[1768086603170,0.03,90521.0,90512.0,0.02212]
[1768086603793,0.04789914,90529.0,90521.0,0.000285]
[1768086604204,0.04104642,90527.0,90512.0,0.13824922]
[1768086604359,0.03,90525.0,90512.0,0.08300899]
[1768086604564,0.03,90525.0,90517.0,0.01104764]
[1768086604767,0.03,90525.0,90516.0,0.06088851]
[1768086604969,0.03,90525.0,90517.0,0.01104764]
[1768086605487,0.03,90530.0,90517.0,0.01104764]
[1768086606477,0.03,90530.0,90518.0,0.01104752]
[1768086606829,0.03,90529.0,90518.0,0.01104752]
[1768086607039,0.03,90529.0,90517.0,0.01104764]
[1768086607212,0.03,90529.0,90516.0,0.11612701]
[1768086607411,0.03,90529.0,90516.0,0.04984074]
[1768086607617,0.03,90528.0,90517.0,0.01104764]
[1768086607821,0.03,90528.0,90516.0,0.11612726]
[1768086608679,0.03,90530.0,90516.0,0.11612726]
[1768086609332,0.03,90530.0,90517.0,0.01104764]
[1768086609536,0.03,90530.0,90518.0,0.04984074]
[1768086611464,0.03,90528.0,90518.0,0.04984074]
[1768086612499,0.01104594,90531.0,90518.0,0.04984074]
[1768086612500,0.03,90530.0,90518.0,0.04984074]
[1768086612717,0.04104606,90530.0,90518.0,0.04984074]
[1768086612925,0.03,90530.0,90518.0,0.04984074]
[1768086613487,0.04104606,90530.0,90518.0,0.04984074]
[1768086614011,0.03,90528.0,90518.0,0.04984074]
[1768086614308,0.03,90528.0,90514.0,0.04984074]
[1768086614309,0.03,90526.0,90514.0,0.04984074]
[1768086614538,0.03,90524.0,90514.0,0.04984074]
[1768086615503,0.06627786,90528.0,90514.0,0.04984074]
[1768086615504,0.03,90527.0,90514.0,0.04984074]
[1768086615866,0.04104642,90527.0,90514.0,0.04984074]
[1768086616346,0.03,90527.0,90514.0,0.06088875]
[1768086616887,0.04104642,90527.0,90514.0,0.06088875]
[1768086617223,0.03,90527.0,90514.0,0.06088875]
[1768086617788,0.03,90526.0,90514.0,0.06088875]
[1768086618868,0.03,90527.0,90514.0,0.06088875]
[1768086620084,0.03,90528.0,90515.0,0.01104789]
[1768086620306,0.03,90528.0,90515.0,0.06088863]
[1768086620690,0.03,90528.0,90517.0,0.04984074]
[1768086620934,0.03,90528.0,90521.0,0.11612369]
[1768086621275,0.03,90531.0,90523.0,0.01104691]
[1768086621472,0.03,90531.0,90522.0,0.11612284]
[1768086621620,0.03,90531.0,90524.0,0.01104679]
[1768086621841,0.02212,90532.0,90531.0,0.000285]
[1768086622244,0.02212,90532.0,90525.0,0.06088741]
[1768086622466,0.02212,90532.0,90525.0,0.04984074]
[1768086622707,5.845e-05,90536.0,90524.0,0.06628056]
[1768086622988,5.845e-05,90536.0,90525.0,0.01104667]
[1768086623186,5.845e-05,90536.0,90524.0,0.01104679]
[1768086623392,0.03,90535.0,90522.0,0.01104703]
[1768086625960,0.03,90534.0,90523.0,0.01104691]
[1768086627230,0.03005845,90536.0,90523.0,0.01104691]
[1768086627690,0.03005845,90536.0,90524.0,0.01104679]
[1768086628052,0.04110378,90536.0,90521.0,0.05523554]
[1768086628253,0.03,90534.0,90522.0,0.06628217]
[1768086628459,0.03,90534.0,90522.0,0.01104703]
[1768086628896,0.03,90534.0,90524.0,0.01104679]
[1768086629032,0.03,90534.0,90524.0,0.0110018]
[1768086629228,0.03,90533.0,90524.0,0.0110018]
[1768086629931,0.03,90533.0,90524.0,0.06623575]
[1768086630065,0.03,90533.0,90524.0,0.0110018]
[1768086630432,0.03,90532.0,90524.0,0.06623551]
[1768086631291,0.03005845,90536.0,90524.0,0.06623551]
[1768086632343,0.03005845,90536.0,90525.0,0.01104667]
[1768086632937,0.03005845,90536.0,90525.0,0.01100168]
[1768086633119,0.03005845,90536.0,90525.0,0.06623498]
[1768086633355,0.03005845,90536.0,90525.0,0.01100168]
[1768086634662,0.08528556,90536.0,90521.0,0.05742778]
[1768086634871,0.03,90534.0,90521.0,0.04633563]
[1768086635088,0.03,90530.0,90519.0,0.02212]
[1768086635654,0.04104606,90530.0,90519.0,0.02212]
[1768086635840,0.03,90528.0,90519.0,0.02212]
[1768086636641,0.0410463,90528.0,90519.0,0.02212]
[1768086636864,0.000714,90519.0,90510.0,0.0110485]
[1768086637067,0.000714,90519.0,90512.0,0.01104825]
[1768086637290,0.000714,90519.0,90513.0,0.02212]
[1768086637503,0.03,90524.0,90513.0,0.02212]
[1768086637928,0.03,90523.0,90513.0,0.02212]
[1768086639231,0.03,90522.0,90513.0,0.02212]
[1768086639904,0.03,90522.0,90515.0,0.01104789]
[1768086640108,0.03,90522.0,90516.0,0.01104777]
[1768086640314,0.02212,90532.0,90522.0,0.000285]
[1768086640516,0.02212,90532.0,90519.0,0.04638062]
[1768086641284,0.04451391,90531.0,90519.0,0.04638062]
[1768086641420,0.03,90530.0,90519.0,0.04638062]
[1768086642521,0.03,90530.0,90519.0,0.1126645]
[1768086642722,0.03,90531.0,90519.0,0.1126645]
[1768086643097,0.03,90531.0,90519.0,0.04638062]
[1768086643440,0.07751374,90531.0,90519.0,0.04638062]
[1768086644725,0.07751374,90531.0,90519.0,0.05742802]
[1768086644902,0.03,90531.0,90519.0,0.05742802]
[1768086645265,0.03,90531.0,90520.0,0.04638062]
[1768086646331,0.03,90531.0,90520.0,0.0574279]
[1768086646537,0.03,90531.0,90520.0,0.04638062]
[1768086646745,0.03,90531.0,90520.0,0.0795479]
[1768086646989,0.03,90531.0,90521.0,0.04638062]
[1768086647208,0.03,90531.0,90521.0,0.05742778]
[1768086647357,0.03,90531.0,90521.0,0.04638062]
[1768086652300,0.03,90531.0,90520.0,0.02212]
[1768086654317,0.04104594,90531.0,90520.0,0.02212]
[1768086655997,0.03,90531.0,90520.0,0.02212]
[1768086656390,0.03,90531.0,90520.0,0.0220115]
[1768086657494,0.04104594,90531.0,90520.0,0.0220115]
[1768086657837,0.03,90529.0,90520.0,0.0220115]
[1768086658193,0.04104618,90529.0,90520.0,0.0220115]
[1768086658589,0.03,90530.0,90520.0,0.0220115]
[1768086658970,0.03,90528.0,90520.0,0.0220115]
[1768086659708,0.03,90529.0,90520.0,0.0220115]
[1768086659936,0.0962772,90529.0,90520.0,0.0220115]
[1768086660136,0.03,90527.0,90520.0,0.0220115]
[1768086660728,0.03,90525.0,90520.0,0.0220115]
[1768086661047,0.03,90525.0,90520.0,0.0212975]
[1768086661831,0.03,90524.0,90520.0,0.0212975]
[1768086662578,0.03,90524.0,90513.0,0.01104813]
[1768086662787,0.03,90524.0,90516.0,0.02212]
[1768086662986,0.06627866,90527.0,90516.0,0.02212]
[1768086662987,0.04104655,90526.0,90516.0,0.02212]
[1768086663509,0.03,90526.0,90516.0,0.02212]
[1768086663870,0.03,90526.0,90513.0,0.01104813]
[1768086664229,0.07764308,90517.0,90516.0,0.02212]
[1768086664972,0.07764308,90517.0,90516.0,0.02207501]
[1768086665764,0.03,90517.0,90516.0,0.02207501]
[1768086666954,0.03,90526.0,90516.0,0.02207501]
[1768086667898,0.03,90527.0,90516.0,0.03312278]
[1768086668521,0.03,90527.0,90516.0,0.02207501]
[1768086669431,0.03,90527.0,90516.0,0.03312278]
[1768086670281,0.03,90527.0,90516.0,0.08836135]
[1768086670474,0.03,90527.0,90516.0,0.03312278]
[1768086670613,0.03,90526.0,90517.0,0.02212]
[1768086671779,0.03,90529.0,90517.0,0.02212]
[1768086673540,0.03,90527.0,90517.0,0.02212]
[1768086674648,0.03,90526.0,90517.0,0.02212]
[1768086675773,0.03,90525.0,90517.0,0.02212]
[1768086676851,0.03,90526.0,90517.0,0.02212]
[1768086678786,0.03,90526.0,90517.0,0.02207502]
[1768086678999,0.03,90524.0,90517.0,0.02207502]
[1768086680241,0.03,90523.0,90517.0,0.02207502]
[1768086680621,0.03,90523.0,90513.0,0.05682632]
[1768086680832,0.03,90523.0,90516.0,0.02212]
[1768086681018,0.03,90523.0,90516.0,0.01962673]
[1768086681205,0.03,90528.0,90516.0,0.01962673]
[1768086681401,0.03,90528.0,90516.0,0.0306745]
[1768086681641,0.03,90528.0,90516.0,0.07486537]
[1768086682371,0.07734954,90532.0,90516.0,0.07486537]
[1768086682372,0.03,90527.0,90518.0,0.01104752]
[1768086682576,0.03,90527.0,90519.0,0.0110474]
[1768086682744,0.03,90527.0,90518.0,0.01104752]
[1768086683148,0.03,90527.0,90517.0,0.05682583]
[1768086683485,0.03,90530.0,90517.0,0.05682583]
[1768086683967,0.03,90530.0,90518.0,0.01104752]
[1768086684345,0.03,90529.0,90518.0,0.01104752]
[1768086684507,0.03,90529.0,90517.0,0.1120639]
[1768086684941,0.03,90529.0,90519.0,0.04577819]
[1768086685592,0.03,90531.0,90519.0,0.05678061]
[1768086685807,0.03,90531.0,90519.0,0.04573321]
[1768086687389,0.03,90531.0,90519.0,0.05678061]
[1768086689513,0.01592,90532.0,90519.0,0.05678061]
[1768086691503,0.01592,90532.0,90520.0,0.01104728]
[1768086691731,0.01592,90532.0,90519.0,0.11201749]
[1768086692351,0.01592,90532.0,90519.0,0.05678061]
[1768086697780,0.01592,90532.0,90519.0,0.11201753]
[1768086699080,0.01592,90532.0,90519.0,0.05678061]
[1768086700047,0.02696581,90532.0,90519.0,0.05678061]
[1768086701187,0.01592,90532.0,90519.0,0.05678061]
[1768086702045,0.03,90534.0,90523.0,0.04582268]
[1768086702273,0.03,90534.0,90524.0,0.05686947]
[1768086702628,0.03,90534.0,90524.0,0.04582268]
[1768086702835,0.03,90534.0,90523.0,0.01104691]
[1768086702836,0.03,90534.0,90526.0,0.04582268]
[1768086703056,0.03005845,90536.0,90526.0,0.04582268]
[1768086703270,0.04104557,90534.0,90526.0,0.04582268]
[1768086703475,0.03,90534.0,90526.0,0.04582268]
[1768086704386,0.03,90535.0,90526.0,0.04582268]
[1768086704867,0.09627289,90535.0,90526.0,0.04582268]
[1768086705070,0.03,90533.0,90526.0,0.04582268]
[1768086706309,0.03,90532.0,90526.0,0.04582268]
[1768086707423,0.03,90531.0,90526.0,0.04582268]
[1768086708200,5.845e-05,90536.0,90526.0,0.04582268]
[1768086708201,0.03,90530.0,90526.0,0.04582268]
[1768086709251,5.845e-05,90536.0,90526.0,0.04582268]
[1768086710739,0.03,90535.0,90526.0,0.04582268]
[1768086711111,0.04104545,90535.0,90526.0,0.04582268]
[1768086711844,0.03,90533.0,90526.0,0.04582268]
[1768086712030,0.03,90533.0,90527.0,0.00679427]
[1768086712239,0.03,90533.0,90526.0,0.04582268]
[1768086713027,0.03,90532.0,90526.0,0.04582268]
[1768086714103,0.03,90531.0,90526.0,0.04582268]
[1768086715184,0.03,90530.0,90526.0,0.04582268]
[1768086717062,0.03,90529.0,90525.0,0.02212]
[1768086717930,0.03,90533.0,90525.0,0.02212]
[1768086719139,0.03,90532.0,90525.0,0.02212]
[1768086720406,0.03,90531.0,90525.0,0.02212]
[1768086721329,0.03,90530.0,90525.0,0.02212]
[1768086721949,0.03,90530.0,90525.0,0.07189386]
[1768086722549,5.845e-05,90536.0,90525.0,0.07189386]
[1768086724405,0.03005845,90536.0,90525.0,0.07189386]
[1768086724566,0.02212,90541.0,90527.0,0.04830164]
[1768086724767,0.02212,90541.0,90536.0,0.000999]
[1768086724768,0.02216672,90541.0,90536.0,0.000999]
[1768086725172,0.02216672,90541.0,90529.0,0.06627666]
[1768086725173,0.02216672,90541.0,90529.0,0.01104618]
[1768086725401,0.02216672,90541.0,90529.0,0.05934782]
[1768086725575,0.03,90540.0,90530.0,0.04830164]
[1768086726009,0.03,90536.0,90529.0,0.06627699]
[1768086726198,0.03,90536.0,90530.0,0.06627627]
[1768086726377,0.0761072,90534.0,90531.0,0.01104594]
[1768086726574,0.02216672,90541.0,90531.0,0.01104594]
[1768086726806,0.0461072,90540.0,90530.0,0.01104606]
[1768086727436,0.03,90537.0,90531.0,0.01104594]
[1768086727625,0.0761072,90537.0,90530.0,0.06627625]
[1768086728192,0.0761072,90537.0,90530.0,0.06627632]
[1768086728566,0.03,90536.0,90530.0,0.06627632]
[1768086729662,0.03,90540.0,90530.0,0.06627632]
[1768086730054,0.03,90540.0,90529.0,0.04830164]
[1768086730252,0.03,90540.0,90529.0,0.05934782]
[1768086730680,0.03,90540.0,90530.0,0.01104606]
[1768086731893,0.03,90540.0,90529.0,0.04830164]
[1768086739030,0.02216672,90541.0,90525.0,0.02212]
[1768086739031,0.03,90534.0,90525.0,0.02212]
[1768086739276,0.00090903,90529.0,90525.0,0.02212]
[1768086739585,0.04104581,90532.0,90524.0,0.02212]
[1768086739586,0.03,90530.0,90524.0,0.02212]
[1768086740576,0.03,90531.0,90524.0,0.02212]
[1768086741185,0.03,90529.0,90524.0,0.02212]
[1768086741568,0.03,90529.0,90516.0,0.11458807]
[1768086741569,0.04104618,90529.0,90516.0,0.04830164]
[1768086741774,0.03,90521.0,90515.0,0.022271]
[1768086742780,0.03,90522.0,90515.0,0.022271]
[1768086743869,0.03,90521.0,90515.0,0.022271]
[1768086745063,0.03,90520.0,90515.0,0.022271]
[1768086745653,0.01104655,90526.0,90515.0,0.022271]
[1768086745654,0.0761072,90518.0,90515.0,0.022271]
[1768086749073,0.03,90517.0,90515.0,0.022271]
[1768086750035,0.03,90522.0,90515.0,0.022271]
[1768086755165,0.0774717,90516.0,90515.0,0.022271]
[1768086757918,0.04088799,90516.0,90515.0,0.022271]
[1768086760277,0.03,90516.0,90515.0,0.022271]
[1768086763286,0.01104655,90526.0,90515.0,0.022271]
[1768086763287,0.03,90525.0,90515.0,0.022271]
[1768086763537,0.03,90516.0,90515.0,0.022271]
[1768086764538,0.03,90525.0,90515.0,0.022271]